Cogmind - Beta 9.5 @@@ ROGUE MODE // 2020.04.07 @ 18:20:22 // Winter2019/RPGLIKE Player: IAMCRAIG Result: Destroyed by 8R-AWN with 8R-AWN's Boregun Performance ------------- Evolutions (1) 500 Regions Visited (5) 1000 Robots Destroyed (88) 440 Value Destroyed (1723) 1723 Prototype IDs (7) 140 Alien Tech Used (0) 0 Bonus (41) 41 TOTAL SCORE: 3844 Bonus ------- High Alert Combat Kills 61 Follower Combat Kills 78 Friendly Fire -98 Cogmind --------- Core Integrity 0/650 Matter 250/300 Energy 160/160 System Corruption 0% Temperature Cool (0) Movement Rolling (90) Location -9/Exiles Parts ------- > --- POWER (1) -------- Light Nuclear Core > --- PROPULSION (2) --- Armored Wheel Improved Flight Unit > --- UTILITY (7) ------ Cooling System Weight Redist. System Visual Processing Unit Improved Sensor Array Signal Interpreter Improved Terrain Scanner > --- WEAPON (3) ------- Improved Light Cannon Bore Cannon Mini Grenade Launcher > --- INVENTORY (1) ---- Large Battery (300) Peak State ------------ > --- POWER ------------ Light Nuclear Core > --- PROPULSION ------- Armored Wheel Improved Flight Unit > --- UTILITY ---------- Cooling System Weight Redist. System Visual Processing Unit Improved Sensor Array Signal Interpreter Improved Terrain Scanner Medium Armor Plating > --- WEAPON ----------- Improved Light Cannon Bore Cannon Mini Grenade Launcher > --- INVENTORY -------- Large Battery [Rating: 30] Favorites ----------- Power Light Nuclear Core Engine Light Ion Engine Power Core Light Nuclear Core Propulsion Light Treads Treads Light Treads Wheel Armored Wheel Hover Unit Improved Hover Unit Flight Unit Improved Flight Unit Utility Improved Sensor Array Device Improved Sensor Array Processor Signal Interpreter Protection Medium Armor Plating Weapon Hammer Energy Gun EM Pulse Gun Ballistic Gun Assault Rifle Ballistic Cannon Bore Cannon Launcher Mini Grenade Launcher Impact Weapon Hammer Build | -11 -10 -10 -9 -9 -9 ------- Run | Scr Mat Min Mat Min Exi Slots Evolved 9 | 3 2 1 2 1 . Power . | . . . . . . Propulsion 1 | 1 . . . . . Utility 6 | 1 2 1 2 . . Weapon 2 | 1 . . . 1 . Parts Attached 53 | 8 11 6 24 4 . Power 6 | 1 1 1 2 1 . Engine 5 | 1 1 1 2 . . Core 1 | . . . . 1 . Reactor . | . . . . . . Propulsion 13 | 2 1 2 8 . . Treads 7 | 2 1 2 2 . . Leg . | . . . . . . Wheel 2 | . . . 2 . . Hover 1 | . . . 1 . . Flight 3 | . . . 3 . . Utility 20 | 2 7 3 8 . . Device 10 | 1 5 1 3 . . Storage . | . . . . . . Processor 4 | 1 1 . 2 . . Hackware . | . . . . . . Protection 6 | . 1 2 3 . . Artifact . | . . . . . . Weapon 14 | 3 2 . 6 3 . Energy Gun 1 | 1 . . . . . Energy Cannon . | . . . . . . Ballistic Gun 6 | 2 . . 4 . . Ballistic Cannon 3 | . . . . 3 . Launcher 1 | . . . 1 . . Special Weapon . | . . . . . . Impact Weapon 3 | . 2 . 1 . . Slashing Weapon . | . . . . . . Piercing Weapon . | . . . . . . Special Melee Weapon . | . . . . . . Unidentified Prototypes 3 | . . . 3 . . Parts Lost 1 | . . . . . 1 Power . | . . . . . . Propulsion . | . . . . . . Utility 1 | . . . . . 1 Weapon . | . . . . . . Highest Loss Streak 1 | . . . . . 1 Average Slot Usage (%) 98 | . 96 99 97 100 100 Engine 6 | . 12 10 8 2 . Core 2 | . . . . 5 7 Treads 11 | . 25 20 11 . . Wheel 3 | . . . . 7 7 Flight 3 | . . . 3 7 7 Device 30 | . 27 30 31 32 30 Processor 11 | . 2 10 12 15 15 Protection 7 | . 3 7 9 7 7 Ballistic Gun 7 | . 22 . 8 . . Ballistic Cannon 4 | . . . . 9 15 Launcher 3 | . . . . 7 7 Impact Weapon 5 | . 2 20 8 . . Naked Turns . | . . . . . . Heaviest Build 30 | 7 9 14 27 30 30 Greatest Support 56 | 8 51 31 56 28 28 Greatest Overweight (x) 1 | . 1 . 1 1 1 Average Overweight (x) . | . . . . . 1 Largest Inventory Capacity 1 | . 1 1 1 1 1 Average Capacity . | . . 1 1 1 1 Most Carried 1 | . 1 1 1 1 1 Average Carried . | . . . . 1 1 Final Capacity 1 | . 1 1 1 1 1 Final Carried 1 | . 1 1 1 1 1 Class Distribution -------------------- 44% | Mutant 24% | Skirmisher 19% | Scavenger-Mutant 4% | Scavenger-Scout 4% | Scout Dominant Class ---------------- Mutant | -10/Materials Scavenger-Mutant | -10/Mines Scavenger-Mutant | -9/Materials Mutant | -9/Mines Skirmisher | -9/Exiles Resources | -11 -10 -10 -9 -9 -9 ----------- Run | Scr Mat Min Mat Min Exi Matter Collected 1892 | 255 491 119 437 590 . Remotely . | . . . . . . Salvage Created 2154 | 14 739 227 730 444 . Parts 171 | 5 54 29 62 21 . Haulers Intercepted 5 | . 2 . 3 . . Recyclers Shooed 3 | . 3 . . . . Parts Field Recycled . | . . . . . . Retrieved Matter . | . . . . . . Parts Self-Destructed . | . . . . . . Prevented . | . . . . . . Kills | -11 -10 -10 -9 -9 -9 ------- Run | Scr Mat Min Mat Min Exi Combat Hostiles Destroyed 65 | . 15 11 23 16 . Melee 10 | . . 8 2 . . Guns 33 | . 15 . 18 . . Cannons 8 | . . . . 8 . AOE 10 | . . 2 . 8 . Classes Destroyed 13 | 1 7 1 2 2 . Worker 5 | . 1 1 1 2 . Builder 1 | . . . 1 . . Tunneler 3 | 1 . 2 . . . Hauler 5 | . 2 . 3 . . Recycler 5 | . 2 1 . 2 . Operator 2 | . 2 . . . . Watcher 2 | . 2 . . . . Swarmer 28 | . 3 9 13 3 . Grunt 22 | . 12 . 4 6 . Brawler 1 | . . . 1 . . Duelist 1 | . . . . 1 . Sentry 7 | . . 2 5 . . Assembled 6 | . . . . 6 . Best Kill Streak 7 | 1 4 3 7 7 . Combat Bots Only 7 | . 4 3 7 6 . Max Kills in Single Turn 3 | 1 1 2 2 3 . Gunslinging 1 | . . . 1 . . Exploded 2 | . . 2 . 2 . Melee 1 | . . 1 1 . . Uniques/NPCs Destroyed . | . . . . . . Combat | -11 -10 -10 -9 -9 -9 -------- Run | Scr Mat Min Mat Min Exi Damage Taken 3571 | . 1016 575 1449 410 121 Core 2662 | . 758 457 1073 288 86 Absorbed by Shields . | . . . . . . Redirected to Core 2053 | . 629 369 823 180 52 Core Remaining (%) 88 | 100 . 77 . . . Volleys Fired 216 | 1 89 . 58 63 5 Largest 2 | 2 2 . 2 2 2 Hottest 96 | 40 40 . 46 96 96 Shots Fired 344 | 2 178 . 79 75 10 Gun 259 | 2 178 . 79 . . Cannon 78 | . . . . 68 10 Launcher 7 | . . . . 7 . Special . | . . . . . . Kinetic 337 | 2 178 . 79 68 10 Thermal . | . . . . . . Explosive 7 | . . . . 7 . Electromagnetic . | . . . . . . Robot Hit Streak 9 | 1 7 . 9 5 3 Robot Miss Streak 5 | 1 5 . 3 5 1 Penetration Max 1 | . . . . 1 . Secondary Targets 7 | . 6 . 1 . . Max Gunslinging Chain 1 | . 1 . 1 . . Shots Hit Robots 259 | 1 104 36 86 31 1 Core Hits 120 | 1 47 13 30 29 . Critical Hits 19 | . 1 . 1 17 . Critical Kills 7 | . . . 1 6 . Critical Parts Destroyed 12 | . 1 . . 11 . Melee Attacks 107 | . . 63 44 . . Impact 107 | . . 63 44 . . Slashing . | . . . . . . Piercing . | . . . . . . Sneak Attacks 9 | . . 6 3 . . Combat Hostiles . | . . . . . . Follow-up Attacks 14 | . . 8 6 . . Damage Inflicted 5201 | 22 1139 938 1664 1414 24 Guns 1991 | 22 1139 . 830 . . Cannons 850 | . . . . 826 24 Explosions 700 | . . 112 . 588 . Melee 1660 | . . 826 834 . . Ramming . | . . . . . . Kinetic 2841 | 22 1139 . 830 826 24 Thermal 112 | . . 112 . . . Explosive 588 | . . . . 588 . Electromagnetic . | . . . . . . Impact 1660 | . . 826 834 . . Slashing . | . . . . . . Piercing . | . . . . . . Highest Corruption 5 | . 5 5 . . . Average Corruption 4 | . 3 5 . . . Corruption Purged . | . . . . . . Effects 35 | . 18 17 . . . Message Errors 7 | . 4 3 . . . Matter Fused 9 | . 5 4 . . . Heat Flow Errors 5 | . 2 3 . . . Parts Rejected 1 | . . 1 . . . Data Loss (minor) 4 | . 1 3 . . . Targeting Errors 9 | . 6 3 . . . Overload Shots . | . . . . . . Overflow Damage 299 | . . 115 137 47 . Projectiles 6 | . . . . 6 . Explosions 41 | . . . . 41 . Melee 252 | . . 115 137 . . Knockbacks 15 | . . 2 2 10 1 Impact 4 | . . 2 2 . . Kinetic 10 | . . . . 9 1 Secondary 1 | . . . . 1 . Self-Inflicted Damage 48 | . . 48 . . . Shots 1 | . . 1 . . . Rammed . | . . . . . . Targets Rammed . | . . . . . . Kicked . | . . . . . . Crushed . | . . . . . . Highest Temperature 245 | . 245 233 1 1 . Average Temperature 68 | . 69 96 1 1 . Received Heat Transfer 960 | . 498 45 318 99 . Siege Activations . | . . . . . . Robots Corrupted . | . . . . . . Combat Hostiles . | . . . . . . Parts Fried 9 | . . 6 3 . . Impact Corruptions 17 | . . 9 8 . . Robots Melted . | . . . . . . Combat Hostiles . | . . . . . . Parts Melted . | . . . . . . Heat Transferred 100 | . . 100 . . . Parts Sabotaged . | . . . . . . Parts Stolen . | . . . . . . Parts Stripped . | . . . . . . Power Chain Reactions . | . . . . . . Missiles Intercepted . | . . . . . . Alert | -11 -10 -10 -9 -9 -9 ------- Run | Scr Mat Min Mat Min Exi Peak Influence 704 | 5 249 358 704 394 . Average Influence 243 | 1 111 233 378 261 . Maximum Alert Level 3 | . 1 1 3 1 . Low Security (%) 33 | 100 80 34 14 5 . Level 1 55 | . 19 65 38 94 . Level 2 9 | . . . 37 . . Level 3 2 | . . . 9 . . Level 4 . | . . . . . . Level 5 . | . . . . . . High Security . | . . . . . . Max Security . | . . . . . . Squads Dispatched 7 | . 4 . 2 1 . Investigation 3 | . 1 . 2 . . Extermination . | . . . . . . Reinforcement 4 | . 3 . . 1 . Assault . | . . . . . . Garrison . | . . . . . . Intercept . | . . . . . . Construction Impeded 1 | . . . . 1 . Haulers Reinforced . | . . . . . . Stealth | -11 -10 -10 -9 -9 -9 --------- Run | Scr Mat Min Mat Min Exi Distress Signals . | . . . . . . Communications Jammed . | . . . . . . Distress Signals . | . . . . . . Times Spotted 90 | . 27 11 27 21 4 Peak Tracking Total 10 | . 4 3 5 10 9 Tactical Retreats 4 | . . . 2 2 . Traps | -11 -10 -10 -9 -9 -9 ------- Run | Scr Mat Min Mat Min Exi Traps Triggered 6 | . 5 . 1 . . Indirectly . | . . . . . . Trap Hack Attempts . | . . . . . . Triggered . | . . . . . . Disarmed . | . . . . . . Reprogrammed . | . . . . . . Reused . | . . . . . . Traps Extracted . | . . . . . . Installed . | . . . . . . Triggered . | . . . . . . Machines | -11 -10 -10 -9 -9 -9 ---------- Run | Scr Mat Min Mat Min Exi Machines Disabled 11 | . . 5 3 3 . Max in Single Turn 1 | . . 1 1 1 . Machines Sabotaged . | . . . . . . Garrisons Compromised . | . . . . . . Overloaded Fab Kills . | . . . . . . Fab Network Shutdowns . | . . . . . . Hacking | -11 -10 -10 -9 -9 -9 --------- Run | Scr Mat Min Mat Min Exi Machines Accessed 14 | . 8 . 6 . . Terminals 8 | . 5 . 3 . . Fabricators . | . . . . . . Repair Stations 2 | . 1 . 1 . . Recycling Units 4 | . 2 . 2 . . Scanalyzers . | . . . . . . Garrison Access . | . . . . . . Total Hacks 48 | . 26 . 22 . . Successful 23 | . 12 . 11 . . Failed 25 | . 14 . 11 . . Catastrophic 2 | . . . 2 . . Database Lockouts . | . . . . . . Manual 31 | . 16 . 11 . 4 Terminals 27 | . 16 . 11 . . Fabricators . | . . . . . . Repair Stations 6 | . 3 . 3 . . Recycling Units 15 | . 7 . 8 . . Scanalyzers . | . . . . . . Garrison Access . | . . . . . . Terminal Hacks 3 | . 2 . 1 . . Prototype ID Bank 2 | . 1 . 1 . . Unreport Threat 1 | . 1 . . . . Fabricator Hacks . | . . . . . . Repair Station Hacks 3 | . 2 . 1 . . Scan Component 2 | . 1 . 1 . . Repair 1 | . 1 . . . . Recycling Unit Hacks 7 | . 3 . 4 . . Report Inventory 4 | . 2 . 2 . . Retrieve Components 3 | . 1 . 2 . . Scanalyzer . | . . . . . . Garrison Access Hacks . | . . . . . . Unauthorized Hacks 35 | . 21 . 14 . . Terminals 7 | . 4 . 3 . . Track 1 | . 1 . . . . Assimilate 1 | . . . 1 . . Botnet 4 | . 2 . 2 . . Disrupt 1 | . 1 . . . . Fabricators . | . . . . . . Repair Stations . | . . . . . . Recycling Units 3 | . 1 . 2 . . Reject 2 | . 1 . 1 . . Mask 1 | . . . 1 . . Scanalyzers . | . . . . . . Garrison Access . | . . . . . . Data Cores Recovered . | . . . . . . Used . | . . . . . . Hacking Detections 13 | . 8 . 5 . . Full Trace Events 3 | . . . 3 . . Feedback Events . | . . . . . . Feedback Blocked . | . . . . . . Robot Schematics Acquired . | . . . . . . Robots Built . | . . . . . . Matter . | . . . . . . Time . | . . . . . . Total Robot Build Rating . | . . . . . . Part Schematics Acquired . | . . . . . . Parts Built . | . . . . . . Matter . | . . . . . . Time . | . . . . . . Total Part Build Rating . | . . . . . . Parts Repaired 1 | . 1 . . . . Time 16 | . 16 . . . . Parts Recycled . | . . . . . . Recycled Matter . | . . . . . . Retrieved Matter . | . . . . . . Retrieved Components 11 | . 7 . 4 . . Parts Scanalyzed . | . . . . . . Part Schematics Acquired . | . . . . . . Parts Damaged . | . . . . . . Bothacking | -11 -10 -10 -9 -9 -9 ------------ Run | Scr Mat Min Mat Min Exi Used RIF Installer . | . . . . . . Robots Hacked . | . . . . . . Non-combat . | . . . . . . Combat . | . . . . . . Robot Hacks Applied . | . . . . . . Relay Couplers Released . | . . . . . . Robots Rewired . | . . . . . . Allies Hacked . | . . . . . . Hacks Repelled . | . . . . . . Allies | -11 -10 -10 -9 -9 -9 -------- Run | Scr Mat Min Mat Min Exi Total Allies 2 | . . . 1 1 . Largest Group 2 | . . . 1 2 1 Highest-Rated Group 41 | . . . 10 41 10 Highest-Rated Ally 31 | . . . 10 31 10 Total Orders 6 | . . . . 6 . GOTO 3 | . . . . 3 . FOLLOW 3 | . . . . 3 . Ally Attacks 13 | . . . . 13 . Total Damage 209 | . . . . 209 . Kills 3 | . . . . 3 . Allies Corrupted . | . . . . . . Allies Melted . | . . . . . . Intel | -11 -10 -10 -9 -9 -9 ------- Run | Scr Mat Min Mat Min Exi Robot Analysis Total . | . . . . . . Derelict Logs Recovered 3 | . . 1 . 2 . Drone Launches . | . . . . . . Drone Recoveries . | . . . . . . Exploration | -11 -10 -10 -9 -9 -9 ------------- Run | Scr Mat Min Mat Min Exi Turns Passed 3756 | 44 846 578 802 1003 483 Spaces Moved 3786 | 58 895 747 765 853 468 Core 2080 | 58 881 746 395 . . Treads 21 | . 14 1 6 . . Legs . | . . . . . . Wheels 1374 | . . . 53 853 468 Hover 41 | . . . 41 . . Flight 270 | . . . 270 . . Fastest Speed 34 | 50 50 50 34 90 100 Average Speed 70 | 50 58 50 61 95 100 Slowest Speed 160 | 50 160 160 160 100 100 Overloaded Moves . | . . . . . . Propulsion Burnouts . | . . . . . . Robots Hopped 3 | . . . 3 . . Cave-ins Triggered . | . . . . . . Exploration Rate (%) 69 | 3 97 98 51 98 71 Regions Visited 5 Branch Regions 3 Pre-discovered Areas 2 | . . . . 2 . Known Exits Taken 4 | . 1 1 1 1 . Unknown Exits Taken 1 | 1 . . . . . Scrap Searched 5 | . . 3 . 2 . Spaces Dug 8 | . . . . . 8 Terrain Destroyed 114 | . . 15 . 91 8 Melee . | . . . . . . Projectile 35 | . . . . 27 8 AOE 79 | . . 15 . 64 . Actions | -11 -10 -10 -9 -9 -9 --------- Run | Scr Mat Min Mat Min Exi Total 4388 | 67 1061 871 950 966 473 Wait 112 | . 25 42 11 34 . Move 3775 | 57 894 746 758 852 468 Hop 3 | . . . 3 . . Pick Up 5 | . 2 1 2 . . Fast Attach 39 | 8 8 2 18 3 . Attach 3 | . 1 1 1 . . Detach 3 | . 2 . 1 . . Swap 11 | . 2 3 5 1 . Drop 37 | 1 7 4 22 3 . Fire 216 | 1 89 . 58 63 5 Melee 87 | . . 51 36 . . Ram . | . . . . . . Kick . | . . . . . . Crush . | . . . . . . Escape Stasis . | . . . . . . Rewire . | . . . . . . Trap . | . . . . . . Miscellaneous 97 | . 31 21 35 10 . Route ------- -11/Scrapyard -10/Materials (discovered 4 exits: *Mat x3 / *Min) -10/Mines (discovered 2 exits: *Mat x2) -9/Materials (discovered 2 exits: *Mat / *Min) -9/Mines (discovered 3 exits: *Mat x2 / *Exi) -9/Exiles (discovered 2 exits: *Min x2) History --------- Turn | Location | Event 1 | -11/Scrapyard | Upgraded with Propulsion slot (x1) 1 | -11/Scrapyard | Upgraded with Utility slot (x1) 1 | -11/Scrapyard | Upgraded with Weapon slot (x1) 5 | -11/Scrapyard | Discovered new exit (range 15) 45 | -11/Scrapyard | Entered Materials 213 | -10/Materials | Discovered new exit (range 12) 279 | -10/Materials | Upgraded with Utility slot (x1) 306 | -10/Materials | Build established: Mutant 319 | -10/Materials | Discovered new exit (range 3) 441 | -10/Materials | Core integrity fell below 50% 629 | -10/Materials | Discovered new exit (range 16) 644 | -10/Materials | Reached level 2 739 | -10/Materials | Upgraded with Utility slot (x1) 793 | -10/Materials | Discovered new exit (range 16) 837 | -10/Materials | Repaired Imp. Sensor Array 890 | -10/Materials | Identified exit to Mines 891 | -10/Materials | Entered Mines 926 | -10/Mines | Learned Materials emergency access door positions 945 | -10/Mines | Reached level 3 983 | -10/Mines | Upgraded with Utility slot (x1) 1154 | -10/Mines | Discovered new exit (range 10) 1271 | -10/Mines | Build established: Scavenger-Mutant 1311 | -10/Mines | Discovered new exit (range 13) 1467 | -10/Mines | Identified exit to Materials 1469 | -10/Mines | Entered Materials 1471 | -9/Materials | Reached level 4 1473 | -9/Materials | Upgraded with Utility slot (x1) 1577 | -9/Materials | Core integrity fell below 50% 1579 | -9/Materials | Reached level 5 1702 | -9/Materials | Core integrity fell below 20% 1866 | -9/Materials | Destroyed 7 combat bots 1916 | -9/Materials | Reached level 6 1927 | -9/Materials | Upgraded with Utility slot (x1) 2083 | -9/Materials | Discovered new exit (range 16) 2227 | -9/Materials | Discovered new exit (range 18) 2270 | -9/Materials | Identified exit to Mines 2271 | -9/Materials | Entered Mines 2271 | -9/Mines | Accompanied by 1 ally 2273 | -9/Mines | Reached level 7 2274 | -9/Mines | Received a Mining Laser from a helpful Derelict 2292 | -9/Mines | A weapon hastily lodged in a ceiling crevice suddenly fell to the ground 2347 | -9/Mines | Assembled infested the area 2416 | -9/Mines | Discovered new exit (range 13) 2427 | -9/Mines | Identified exit to Materials 2534 | -9/Mines | Learned location of Zion (-7) 2569 | -9/Mines | Discovered exit to Materials (range 9) 2607 | -9/Mines | Build established: Mutant 2629 | -9/Mines | Deemed a non-threat by the Exiles lab entrance 2629 | -9/Mines | Discovered new exit (range 5) 2796 | -9/Mines | Reached level 8 3003 | -9/Mines | Upgraded with Weapon slot (x1) 3034 | -9/Mines | Learned location of Storage (-8) 3062 | -9/Mines | Received a Rocket Launcher from a helpful Derelict 3271 | -9/Mines | Identified exit to Exiles 3274 | -9/Mines | Entered Exiles 3274 | -9/Exiles | Accompanied by 1 ally 3287 | -9/Exiles | Discovered new exit (range 17) 3294 | -9/Exiles | Build established: Skirmisher 3298 | -9/Exiles | Met 8R-AWN 3313 | -9/Exiles | Met EX-HEX 3344 | -9/Exiles | Met EX-BIN 3451 | -9/Exiles | Met EX-DEC 3550 | -9/Exiles | Discovered new exit (range 16) 3562 | -9/Exiles | Identified exit to Mines 3752 | -9/Exiles | Attacked by the Exiles 3757 | -9/Exiles | Destroyed by 8R-AWN with 8R-AWN's Boregun Last Messages --------------- 03660_ HV Slug penetrates Wall. 03660_ HV Slug penetrates Earth. 03751_ 8R-AWN knocked back. 03752_ EXILES: Hostile robot within lab perimeter. Defensive protocols time, folks! 03752_ Penetrated by HV Slug. 03752_ HV Slug penetrates Wall. 03752_ Penetrated by HV Slug. 03752_ HV Slug penetrates Wall. 03754_ Penetrated by HV Slug. 03754_ HV Slug penetrates Wall. 03754_ Penetrated by HV Slug. 03754_ HV Slug penetrates Wall. 03757_ HV Slug penetrates Machine. 03757_ Machine disabled. 03757_ HV Slug penetrates Wall. 03757_ HV Slug penetrates Technician 2a. 03757_ Technician 2a suffers critical hit. 03757_ Penetrated by HV Slug. 03757_ Med. Armor Plating destroyed. Map ----- +----------------------------------------------------+ | #????????????????????????????????????????????????? | | #????????????????????????????????????????????????? | | #????????????????????????????????????????????????? | | #????????????????????????????????????????????????? | | ##???????????????????????????????????????????????? | | ""???????????????????????????????????????????????? | | ##?#?????????????????????????????????????????????? | | ""???????????????????????????????????????????????? | | # ???????????????????????????????????????????????? | | #?"??????????????????????????????????????????????? | | #?????????????????#????#?????????????????????????? | | #?????#??????????????????????????????????????????? | | ?##??????????????????????????#?????????????# #?? | | ??#???????????????????????????????????????? < #?? | | #######??#????????????????????????????????? #?? | | """"""##??????????????????????????????????? ??? | | "" """"##???#?????????????????????????????# #??? | | " " #???????????????????????????????## ##?? | | " """#??????#??????????#?????????????# #?? | | " "#???????????#####???????????????# #?? | | " "##??#??????##"g #??????????????## ??? | | ""###???????#" #?????????????## #???? | | """#??????##" ##??##??#?????# #???? | | "#????### o###????????### #????? | | ##???# ########## #????? | | ##?## @ #""""## #?????? | | ### a * ##????? | | #; * #????? | | a #### ##???? | | ""#?#""" "#### ###?? | | #"""##?#######??#### * ### | | ######??????????????##### # | | ##??????#????????????????### | | " ##???????????????#?#????????### | | """ ""#???????????#????#????????????### | | "#" "##????#????????????#??????#?????#" | | "##"""""""##???????????????????#?#?????????#### | | ###########???????????#????????????#??????????# | | #??????????????????##????????????#????????????## | | ???????????????????????????????????????????????### | | ?????????????????????????????????????????????????# | | ?????????????????????????????????????????????????# | | ?????????????????????????????????????????????????? | | ?#???????????????????????????????????????????????? | | ?????????????????????????????????????????????????? | | ?????????????????????????????????????????????????? | | ?????????????????????????????????????????????????? | | ?????????????????????????????????????????????????? | | ?????????????????????????????????????????????????? | | ?????????????????????????????????????????????????? | +----------------------------------------------------+ Best States ------------- Heat Dissipation 47 Energy Generation 14 Energy Capacity 280 Matter Stores 300 Matter Capacity 300 Sight Range 18 Robot Scan Range 13 Terrain Scan Range 16 Terrain Scan Density 60 Additional Mass Support 6 Armor Coverage 375 Resistance: KI 20 Weapon Shielding 33 Evasion (%) 63 Recoil Reduction 2 Salvage Targeting 1 Item Schematics ----------------- None Robot Schematics ------------------ None Fabricated ------------ Nothing Alien Tech Used ----------------- None Achievements -------------- Batter Up Challenges ------------ None RPGLIKE | -11 -10 -10 -9 -9 -9 --------- Run | Scr Mat Min Mat Min Exi Levels Raised 7 | . 1 1 3 2 . XP Earned 14137 | 3000 1990 2125 4820 2063 139 XP Spent 13475 | 1600 2150 1900 4825 3000 . Upgrades 21 | 4 3 3 6 5 . Propulsion Slot 1 | 1 . . . . . Utility Slot 6 | 1 2 1 2 . . Weapon Slot 2 | 1 . . . 1 . Core Integrity 1 | . . . 1 . . Mass Support 2 | 1 . . 1 . . Inventory Capacity 1 | . 1 . . . . Ranged Accuracy 2 | . . . . 2 . Melee Accuracy 2 | . . 2 . . . KI Resistance % 4 | . . . 2 2 . Protomatter Created 637 | . 222 141 228 46 . Integrity Restored 2019 | . 666 423 732 198 . Core 2007 | . 654 423 732 198 . Parts 12 | . 12 . . . . Protomatter Decayed . | . . . . . . Game ------ Seed CooledAntimissileDerivative Manual? 0 Play Time 00:47:18 Cumulative 128.7 hours Start 2020.04.07 @ 17:34:38 End 2020.04.07 @ 18:20:22 Sessions 1 Manual Loads 0 Difficulty Rogue Special Mode Winter2019/RPGLIKE Game No. 48 Rogue 48 Adventurer 0 Explorer 0 Win Type - Total 1 Types 1/0/0/0/0/0/0 Lore% 54 Gallery% 66 Achievement% 61 Wizard Run 0 Options --------- ASCII 1 Keyboard 1 Movement Numpad Keybinds 0 Fullscreen 1 Font 16/SmallcapsGlow Map View 75x55 Tactical HUD 1 Map Filters NONE Filters NONE Steam 1 RUN: 3476642f-c3cf-4167-96bc-0e5fdd881385